Cogmind - Beta 15 @@@ ROGUE MODE // 2025.07.21 @ 17:50:11 Player: Skysub Result: Destroyed by G-47 Trooper with Particle Gun Performance ------------- Evolutions (0) 0 Regions Visited (1) 200 Robots Destroyed (24) 120 Value Destroyed (577) 577 Prototype IDs (0) 0 Alien Tech Used (0) 0 Bonus (0) 0 TOTAL SCORE: 897 Bonus ------- None Cogmind --------- Core Integrity 0/250 Matter 282/300 Energy 100/100 System Corruption 0% Temperature Cool (9) Movement Rolling (175) Ox5 Location -10/Materials Parts ------- > --- POWER (1) -------- (None) > --- PROPULSION (2) --- Light Treads Compact Wheel > --- UTILITY (2) ------ Huge Storage Unit > --- WEAPON (2) ------- Light Assault Rifle > --- INVENTORY (25) --- Light Ion Engine Light Treads Compact Wheel Small Storage Unit Structural Scanner Signal Interpreter Mining Laser Peak State ------------ > --- POWER ------------ Ion Engine > --- PROPULSION ------- Light Treads Light Treads > --- UTILITY ---------- Small Storage Unit Huge Storage Unit > --- WEAPON ----------- Assault Rifle Light Assault Rifle > --- INVENTORY -------- Light Ion Engine Wheel Wheel Mining Laser [Rating: 7] Favorites ----------- Power Ion Engine Engine Ion Engine Propulsion Light Treads Treads Light Treads Wheel Wheel Utility Huge Storage Unit Storage Huge Storage Unit Weapon Light Assault Rifle Ballistic Gun Light Assault Rifle Build | -11 -10 ------- Run | Yrd Mat Slots Evolved . | . . Power . | . . Propulsion . | . . Utility . | . . Weapon . | . . Parts Attached 11 | 6 5 Power 1 | 1 . Engine 1 | 1 . Core . | . . Reactor . | . . Propulsion 5 | 2 3 Treads 2 | 2 . Leg . | . . Wheel 3 | . 3 Hover . | . . Flight . | . . Utility 3 | 1 2 Device . | . . Storage 3 | 1 2 Processor . | . . Hackware . | . . Protection . | . . Artifact . | . . Weapon 2 | 2 . Energy Gun . | . . Energy Cannon . | . . Ballistic Gun 2 | 2 . Ballistic Cannon . | . . Launcher . | . . Special Weapon . | . . Impact Weapon . | . . Slashing Weapon . | . . Piercing Weapon . | . . Special Melee Weapon . | . . Unidentified Prototypes . | . . Parts Lost 4 | . 4 Power 1 | . 1 Propulsion 2 | . 2 Utility . | . . Weapon 1 | . 1 Highest Loss Streak 2 | . 2 To Critical Strikes . | . . Average Backups 5 | 2 6 Power . | . 1 Propulsion 1 | 1 1 Utility 2 | . 2 Weapon . | . 1 Tool/Special . | . . Unused Backups 5 | . 5 Power 1 | . 1 Propulsion 1 | . 1 Utility 2 | . 2 Weapon 1 | . 1 Tool/Special . | . . Average Slot Usage (%) 81 | . 81 Engine 13 | . 13 Treads 16 | . 16 Wheel 11 | . 11 Storage 14 | . 14 Ballistic Gun 23 | . 23 Peak Build Rating 7 | 6 7 Average Rating 5 | 5 5 On Entrance 3 | . 6 Naked Turns . | . . Heaviest Build 108 | 13 108 Greatest Support 40 | 40 40 Greatest Overweight (x) 10 | 1 10 Average Overweight (x) 5 | . 6 Largest Inventory Capacity 25 | 8 25 Average Capacity 22 | 7 24 Most Carried 7 | 4 7 Average Carried 5 | 2 6 Final Capacity 25 | 8 25 Final Carried 7 | 4 7 Class Distribution -------------------- 100% | Mutant Dominant Class ---------------- Mutant | -10/Materials Resources | -11 -10 ----------- Run | Yrd Mat Matter Collected 528 | 272 256 Remotely . | . . Salvage Created 918 | 93 825 Parts 66 | 9 57 Haulers Intercepted . | . . Recyclers Shooed 1 | 1 . Parts Field Recycled . | . . Retrieved Matter . | . . Parts Self-Destructed . | . . Prevented . | . . Kills | -11 -10 ------- Run | Yrd Mat Combat Hostiles Destroyed 14 | . 14 Guns 14 | . 14 Classes Destroyed 6 | 2 4 Worker 1 | . 1 Builder 2 | . 2 Tunneler 2 | 2 . Recycler 4 | 1 3 Watcher 1 | . 1 Grunt 14 | . 14 Best Kill Streak 5 | 3 5 Combat Bots Only 4 | . 4 Max Kills in Single Turn 2 | 1 2 Gunslinging . | . . Exploded . | . . Melee . | . . Uniques/NPCs Destroyed . | . . Combat | -11 -10 -------- Run | Yrd Mat Hostile Shots Fired 82 | . 82 Missed 18 | . 18 Hits 64 | . 64 Projectile 64 | . 64 Critical Strikes 2 | . 2 Damage Taken 841 | . 841 Core 260 | . 260 Absorbed by Shields . | . . Core Remaining (%) 100 | 100 . Volleys Fired 82 | 8 74 Largest 2 | 2 2 Hottest 40 | 40 40 Shots Fired 139 | 16 123 Gun 139 | 16 123 Cannon . | . . Launcher . | . . Special . | . . Kinetic 139 | 16 123 Thermal . | . . Explosive . | . . Electromagnetic . | . . Robot Hit Streak 14 | 9 14 Robot Miss Streak 4 | 2 4 Penetration Max . | . . Secondary Targets 1 | . 1 Max Gunslinging Chain 1 | . 1 Shots Hit Robots 95 | 12 83 Core Hits 46 | 4 42 Critical Kills . | . . Critical Parts Destroyed . | . . Critical Strikes . | . . Melee Attacks . | . . Impact . | . . Slashing . | . . Piercing . | . . Sneak Attacks . | . . Combat Hostiles . | . . Follow-up Attacks . | . . Damage Inflicted 1018 | 122 896 Guns 1015 | 120 895 Cannons . | . . Explosions . | . . Melee . | . . Ramming 3 | 2 1 Kinetic 1015 | 120 895 Thermal . | . . Explosive . | . . Electromagnetic . | . . Impact . | . . Slashing . | . . Piercing . | . . Highest Corruption . | . . Average Corruption . | . . Corruption Purged . | . . Corruption Blocked . | . . Overload Shots . | . . Overflow Damage . | . . Projectiles . | . . Explosions . | . . Melee . | . . Knockbacks . | . . Impact . | . . Kinetic . | . . Secondary . | . . Self-Inflicted Damage . | . . Shots . | . . Rammed 2 | 1 1 Targets Rammed 2 | 1 1 Kicked . | . . Crushed . | . . Highest Temperature 36 | . 36 Average Temperature 9 | . 9 Received Heat Transfer 489 | . 489 Siege Activations . | . . Martial Activations . | . . Shielding Activations . | . . Robots Disrupted . | . . Combat Hostiles . | . . Robots Corrupted . | . . Combat Hostiles . | . . Parts Fried . | . . Impact Corruptions . | . . Robots Melted . | . . Combat Hostiles . | . . Parts Melted . | . . Heat Transferred . | . . Parts Sabotaged . | . . Parts Stolen . | . . Parts Stripped . | . . Power Chain Reactions . | . . Alert | -11 -10 ------- Run | Yrd Mat Maximum Alert Level 1 | . 1 Low Security (%) 96 | 100 96 Level 1 3 | . 3 Level 2 . | . . Level 3 . | . . Level 4 . | . . Level 5 . | . . High Security . | . . Max Security . | . . Peak Influence 214 | 10 214 Initial . | . . Average 78 | 1 85 Influence Increases 491 | 15 476 Destroy 0b10 Robot/C 280 | . 280 Destroy 0b10 Robot/NC 50 | 15 35 Destroy Leader 62 | . 62 Successful Hack 24 | . 24 Select Force Hacks 60 | . 60 Disable Machine 15 | . 15 Influence Decreases 422 | 15 407 Time Decay 382 | 15 367 Lost Part 40 | . 40 Squads Dispatched 5 | . 5 Investigation 4 | . 4 Extermination . | . . Reinforcement 1 | . 1 Assault . | . . Garrison . | . . Intercept . | . . Searches Triggered . | . . Construction Impeded . | . . Haulers Reinforced . | . . Active Scanning Responses . | . . Cargo Convoy Interrupts . | . . Stealth | -11 -10 --------- Run | Yrd Mat Distress Signals 3 | . 3 Communications Jammed . | . . Distress Signals . | . . Times Spotted 27 | . 27 Peak Tracking Total 4 | . 4 Tactical Retreats . | . . Traps | -11 -10 ------- Run | Yrd Mat Traps Triggered 3 | . 3 Indirectly . | . . Trap Hack Attempts . | . . Triggered . | . . Disarmed . | . . Reprogrammed . | . . Reused . | . . Traps Extracted . | . . Installed . | . . Triggered . | . . Machines | -11 -10 ---------- Run | Yrd Mat Machines Disabled 1 | . 1 Max in Single Turn 1 | . 1 Machines Repaired . | . . Machines Dismantled . | . . Machines Sabotaged . | . . Overloaded Fab Kills . | . . Hacking | -11 -10 --------- Run | Yrd Mat Machines Accessed 8 | . 8 Terminals 6 | . 6 Fabricators . | . . Repair Stations . | . . Recycling Units 2 | . 2 Scanalyzers . | . . Garrison Access . | . . Total Hacks 23 | . 23 Successful 15 | . 15 Failed 8 | . 8 Catastrophic 1 | . 1 Database Lockouts . | . . Manual 17 | . 17 Terminals 15 | . 15 Fabricators . | . . Repair Stations . | . . Recycling Units 8 | . 8 Scanalyzers . | . . Garrison Access . | . . Terminal Hacks 2 | . 2 Terminal Index 1 | . 1 Zone Layout 1 | . 1 Fabricator Hacks . | . . Repair Station Hacks . | . . Recycling Unit Hacks 3 | . 3 Report Inventory 2 | . 2 Retrieve Components 1 | . 1 Scanalyzer . | . . Garrison Access Hacks . | . . Unauthorized Hacks 10 | . 10 Terminals 7 | . 7 Botnet 2 | . 2 Skim 5 | . 5 Fabricators . | . . Repair Stations . | . . Recycling Units 3 | . 3 Mask 1 | . 1 Tunnel 2 | . 2 Scanalyzers . | . . Garrison Access . | . . Data Cores Recovered . | . . Used . | . . Hacking Detections 7 | . 7 Full Trace Events . | . . Feedback Events . | . . Feedback Blocked . | . . Robot Schematics Acquired . | . . Robots Built . | . . Authchips . | . . Time . | . . Total Robot Build Rating . | . . Part Schematics Acquired . | . . Parts Built . | . . Authchips . | . . Time . | . . Total Part Build Rating . | . . Parts Repaired . | . . Time . | . . Parts Recycled . | . . Recycled Matter . | . . Retrieved Matter . | . . Retrieved Components 9 | . 9 Parts Scanalyzed . | . . Part Schematics Acquired . | . . Parts Damaged . | . . Bothacking | -11 -10 ------------ Run | Yrd Mat Used RIF Installer . | . . Robots Hacked . | . . Non-combat . | . . Combat . | . . Robot Hacks Applied . | . . Relay Couplers Released . | . . Fabnet Peak Effective % . | . . Robots Rewired . | . . Allies Hacked . | . . Hacks Repelled . | . . Allies | -11 -10 -------- Run | Yrd Mat Total Allies . | . . Largest Group . | . . Highest-Rated Group . | . . Highest-Rated Ally . | . . Total Orders . | . . Ally Attacks . | . . Total Damage . | . . Kills . | . . Allies Corrupted . | . . Allies Melted . | . . Intel | -11 -10 ------- Run | Yrd Mat Active Infowar (turns) . | . . Robot Analysis Total . | . . Derelict Logs Recovered . | . . Drone Launches . | . . Drone Recoveries . | . . Exploration | -11 -10 ------------- Run | Yrd Mat Turns Passed 1186 | 109 1077 Spaces Moved 427 | 49 378 Core 6 | 6 . Treads 117 | 43 74 Legs . | . . Wheels 304 | . 304 Hover . | . . Flight . | . . Fastest Speed 50 | 50 160 Average Speed 207 | 148 214 Slowest Speed 320 | 160 320 Overloaded Moves . | . . Propulsion Burnouts . | . . Robots Hopped . | . . Potential Cave-ins . | . . Cave-ins Triggered . | . . Exploration Rate (%) 43 | 5 81 Regions Visited 1 Branch Regions . Pre-discovered Areas 2 | . 2 Known Exits Taken . | . . Unknown Exits Taken 1 | 1 . Scrap Searched . | . . Spaces Dug . | . . Terrain Destroyed . | . . Melee . | . . Projectile . | . . AOE . | . . Terrain Rammed . | . . Walls Destroyed . | . . Machines Disabled . | . . Actions | -11 -10 --------- Run | Yrd Mat Total 598 | 67 531 Wait 65 | . 65 Move 427 | 49 378 Hop . | . . Pick Up 8 | 4 4 Fast Attach 8 | 6 2 Attach 2 | . 2 Detach 2 | . 2 Swap 2 | . 2 Drop 1 | . 1 Fire 82 | 8 74 Melee . | . . Ram . | . . Kick . | . . Crush 1 | . 1 Escape Stasis . | . . Rewire . | . . Trap . | . . Miscellaneous . | . . Route ------- -11/Scrapyard -10/Materials (discovered 6 exits: *Mat x3 / *Min x2 / Sub) History --------- Turn | Location | Event 18 | -11/Scrapyard | Discovered new exit (range 15) 110 | -11/Scrapyard | Entered Materials 245 | -10/Materials | Discovered new exit (range 12) 309 | -10/Materials | Build established: Mutant 625 | -10/Materials | Core integrity fell below 50% 705 | -10/Materials | Discovered new exit (range 12) 789 | -10/Materials | Discovered new exit (range 13) 871 | -10/Materials | Identified exit to Mines 871 | -10/Materials | Identified exit to Subcaves 871 | -10/Materials | Identified exit to Materials 931 | -10/Materials | Learned 2 Materials zone layouts 1025 | -10/Materials | Learned Storage terminal intel 1085 | -10/Materials | Learned location of 1 exit from Storage 1166 | -10/Materials | Learned Storage trap positions 1172 | -10/Materials | Core integrity fell below 20% 1187 | -10/Materials | Destroyed by G-47 Trooper with Particle Gun Last Messages --------------- 01055_ Acquired 1 matter. 01056_ R-06 Scavenger destroyed. 01057_ Acquired 1 matter. 01058_ R-06 Scavenger destroyed. 01059_ >> SKIM: Loading Materials stockpile data (x3)... 01059_ Acquired 1 matter. 01060_ K-01 Serf collects debris. 01085_ >> SKIM: Stored Storage exits (x1). 01085_ Acquired Com. Wheel. 01096_ K-01 Serf cleans the Matter Pump. 01119_ K-01 Serf collects debris. 01120_ >> SKIM: Exit location confirmed. 01122_ K-01 Serf cleans the Matter Filter. 01166_ >> SKIM: Stored Storage trap records. 01166_ >> SKIM: Data seek routine purged. 01173_ Ion Engine destroyed. 01175_ Critical hit (Burn: +37). 01180_ G-34 Mercenary destroyed. 01181_ K-01 Serf collects debris. Map ----- +----------------------------------------------------+ | ??????????????# # """"""" #####+# | | ??????????????# # """"""" ### % | | ??????????????# # """"""" % | | ??????????????# # | | ??????????????# # | | ??????????????# # | | ??????????????# # %* * | | ??????????????# +[ ######### *% | | ?????????????############%% #""!"!""#! = | | ?????????????# ## # "!"!" # =! | | ?????????????# # # # ! | | ?????????????# # " | | ?????????????# + > | | ?????????????# # | | ?????????????# [ # ##### #### | | ?????????????# ###/###############??? | | ?????????????# #?# #?????? | | ?????????????###"T"#####?# """ """"" #?????? | | ???????????????########??# """ ""T"" #?????? | | ???????????????##!! !##??# """ #?????? | | ???????????????#! !#??# #?????? | | ?????########??# #??#######/######?????? | | ?????# #### ######## #????????? | | ?????#[[[ ]# k u #????????? | | ?????#[[ # !%= " #????????? | | ?????#[[ # @ * g #????????? | | ?????# + ##########+### ! #????????? | | ?????# # # #? ##########?????? | | ?????######## # # " " #?# #?????? | | ?????######## # # """ #?# #?????? | | ?##### # # """ ### ""#?????? | | ?#** + # """ + # T"#?????? | | ?#** # # ### ""#?????? | | ?#[[ ###+#### ########?# #?????? | | ?#[[ # ?# #????????####+###???### | | ?#!! # """ # #???????????# #?????# " | | ?#!! # """ # #???????????# #?????# | | ?######### """ # #???????????# #?????#! | | ?????????# """ # #???????????# #?????# | | ?????????# #######?????????### ###???### | | ?????????########???????????????# ####### | | ????????????????????????????????# | | ????????????????????????????????# > | | ????????????????????????????????# | | ????????????????????????????????# ####### | | ????????????????????????????????#######?????? | | ????????????????????????????????????????????? | | ????????????????????????????????????????????? | | ????????????????????????????????????????????? | | | +----------------------------------------------------+ Best States ------------- Heat Dissipation 25 Energy Generation 10 Energy Capacity 250 Matter Stores 300 Matter Capacity 300 Sight Range 16 Terrain Scan Density 10 Evasion (%) 40 Recoil Reduction 2 Item Schematics ----------------- None Robot Schematics ------------------ None Fabricated ------------ Nothing Repaired ---------- Nothing Alien Tech Used ----------------- None Achievements -------------- None Challenges ------------ None Game ------ Seed EfficiencyForceAutogun Manual? 0 Play Time 00:09:10 Cumulative 167.3 hours Start 2025.07.21 @ 17:43:26 End 2025.07.21 @ 17:50:11 Sessions 1 Manual Loads 0 Difficulty Rogue Special Mode None Game No. 191 Rogue 191 Adventurer 0 Explorer 0 Win Type - Total 3 Types 1/0/0/1/0/0/0/0/0/1 Lore% 67 Gallery% 62 Achievement% 55 Wizard Run 0 Options --------- Layout 1 ASCII 0 Keyboard 1 Movement Arrows Keybinds 0 Fullscreen 1 Font 36/Smallcaps Map View 50x40 Zoom Use 0% Tactical HUD 1 Map Filters NONE Filters NONE Steam 1 RUN: 61ded769-e8ed-4d94-8cea-b25045c91642